Workbook

Sheet Лист1
I1: К постановлению Администрации Североуральского городского округа от .11.2015г. №
A2: Приложение № 2 к муниципальной программе Североуральского городского округа «Развитие жилищно-коммунального хозяйства и транспортного обслуживания населения, повышение энергетической эффективности и охрана окружающей среды в Североуральском городском округе» на 2014-2020 годы
A3: План мероприятий
A4: по выполнению муниципальной программы Североуральского городского округа
A5: «Развитие жилищно-коммунального хозяйства и транспортного обслуживания населения,
A6: повышение энергетической эффективности и охрана окружающей среды в Североуральском городском округе» на 2014-2020 годы
A8: № строки | B8: Наименование мероприятия/ Источники расходов на финансирование | C8: Объем расходов на выполнение мероприятия за счет всех источников ресурсного обеспечения, тыс. руб. | K8: Номер строки целевых показателей, на достижение которых направлены мероприятия
C9: Всего | D9: 2014 год | E9: 2015 год | F9: 2016 год | G9: 2017 год | H9: 2018 год | I9: 2019 год | J9: 2020 год
A10: 1 | B10: ВСЕГО по муниципальной программе, в том числе: | C10: =SUM(C11:C13) -> 1045040.96 | D10: 283826.9 | E10: =SUM(E11:E13) -> 352008.16 | F10: 98543.5 | G10: 76165.6 | H10: 78165.6 | I10: 78165.6 | J10: 78165.6 | K10: Х
A11: =SUM(A10+1) -> 2 | B11: местный бюджет | C11: =SUM(D11:J11) -> 632381.96 | D11: =SUM(D15+D19) -> 92792.8 | E11: =SUM(E15+E19) -> 130383.26 | F11: 98543.5 | G11: 76165.6 | H11: 78165.6 | I11: 78165.6 | J11: 78165.6
A12: =SUM(A11+1) -> 3 | B12: областной бюджет | C12: =SUM(D12:J12) -> 244341.4 | D12: =SUM(D16+D20) -> 109216.1 | E12: =SUM(E16+E20) -> 135125.3 | F12: =SUM(F16+F20) -> 0 | G12: =SUM(G16+G20) -> 0 | H12: =SUM(H16+H20) -> 0 | I12: =SUM(I16+I20) -> 0 | J12: =SUM(J16+J20) -> 0
A13: =SUM(A12+1) -> 4 | B13: федеральный бюджет | C13: =SUM(D13:J13) -> 168317.6 | D13: =SUM(D21+D17) -> 81818 | E13: =SUM(E21+E17) -> 86499.6 | F13: 0 | G13: 0 | H13: 0 | I13: 0 | J13: 0
A14: 5 | B14: Капитальные вложения | C14: =SUM(C15:C17) -> 566122.8 | D14: =SUM(D15:D17) -> 232761.9 | E14: =SUM(E15:E17) -> 274847.8 | F14: 23680.7 | G14: 8708.1 | H14: 8708.1 | I14: 8708.1 | J14: 8708.1 | K14: Х
A15: 6 | B15: местный бюджет | C15: =SUM(D15:J15) -> 156831 | D15: =D29+D97+D149+D169+D199+D232+D298+D317 -> 44727.8 | E15: 53590.1 | F15: 23680.7 | G15: 8708.1 | H15: 8708.1 | I15: 8708.1 | J15: 8708.1
A16: 7 | B16: областной бюджет | C16: =SUM(D16:J16) -> 240974.2 | D16: =D98+D170+D30 -> 106216.1 | E16: =E98+E170+E30 -> 134758.1 | F16: =F98+F170 -> 0 | G16: =G98+G170 -> 0 | H16: =H98+H170 -> 0 | I16: =I98+I170 -> 0 | J16: =J98+J170 -> 0
A17: 8 | B17: федеральный бюджет | C17: =SUM(D17:J17) -> 168317.6 | D17: =D171 -> 81818 | E17: =E171 -> 86499.6 | F17: 0 | G17: 0 | H17: 0 | I17: 0 | J17: 0
A18: 9 | B18: Прочие нужды | C18: =SUM(C19:C20) -> 478918.16 | D18: =SUM(D19:D20) -> 51065 | E18: =SUM(E19:E20) -> 77160.36 | F18: 74862.8 | G18: 67457.5 | H18: 69457.5 | I18: 69457.5 | J18: 69457.5 | K18: Х
A19: 10 | B19: местный бюджет | C19: =SUM(D19:J19) -> 475550.96 | D19: =D44+D127+D158+D187+D241+D307+D336+D208+D289 -> 48065 | E19: 76793.16 | F19: 74862.8 | G19: 67457.5 | H19: 69457.5 | I19: 69457.5 | J19: 69457.5
A20: 11 | B20: областной бюджет | C20: =SUM(D20:J20) -> 3367.2 | D20: =SUM(D128+D335+D45) -> 3000 | E20: 367.2 | F20: 0 | G20: 0 | H20: 0 | I20: 0 | J20: 0
A21: 12 | B21: федеральный бюджет | C21: =SUM(D21:J21) -> 0 | D21: 0 | E21: =E128 -> 0 | F21: 0 | G21: 0 | H21: 0 | I21: 0 | J21: 0
A22: 13 | B22: Подпрограмма 1: Комплексное благоустройство территории Североуральского городского округа
A23: 14 | B23: Всего по подпрограмме 1, | C23: =SUM(C25+C26) -> 199635.8 | D23: =SUM(D25:D26) -> 25725.2 | E23: 29762.1 | F23: 30055.3 | G23: 28523.3 | H23: 28523.3 | I23: 28523.3 | J23: 28523.3 | K23: Х
B24: в том числе:
A25: 15 | B25: местный бюджет | C25: =SUM(D25:J25) -> 194761.2 | D25: =SUM(D29+D44) -> 24510.5 | E25: 26102.2 | F25: 30055.3 | G25: 28523.3 | H25: 28523.3 | I25: 28523.3 | J25: 28523.3
A26: =SUM(A25+1) -> 16 | B26: областной бюджет | C26: =SUM(D26:J26) -> 4874.6 | D26: =SUM(D30+D45) -> 1214.7 | E26: 3659.9 | F26: 0 | G26: 0 | H26: 0 | I26: 0 | J26: 0
A27: 17 | B27: 1. Капитальные вложения
A28: 18 | B28: Всего по направлению «Капитальные вложения» всего, в том числе | C28: =SUM(D28:J28) -> 28802.7 | D28: =SUM(D29+D30) -> 3536.4 | E28: =SUM(E29+E30) -> 3853.6 | F28: =SUM(F29) -> 6425.5 | G28: =SUM(G29) -> 3746.8 | H28: =SUM(H29) -> 3746.8 | I28: =SUM(I29) -> 3746.8 | J28: =SUM(J29) -> 3746.8 | K28: Х
A29: 19 | B29: местный бюджет | C29: =SUM(D29:J29) -> 24274.3 | D29: =SUM(D40) -> 2321.7 | E29: =SUM(E40) -> 539.9 | F29: 6425.5 | G29: 3746.8 | H29: 3746.8 | I29: 3746.8 | J29: 3746.8
A30: 20 | B30: областной бюджет | C30: =SUM(D30:J30) -> 4528.4 | D30: =SUM(D37) -> 1214.7 | E30: =SUM(E37) -> 3313.7 | F30: 0 | G30: 0 | H30: 0 | I30: 0 | J30: 0
A31: 21 | B31: 1.1. Бюджетные инвестиции в объекты капитального строительства
A32: 22 | B32: Бюджетные инвестиции в объекты капитального строительства всего, в том числе | C32: 0 | D32: 0 | E32: 0 | F32: 0 | G32: 0 | H32: 0 | I32: 0 | J32: 0 | K32: Х
A33: 23 | B33: местный бюджет | C33: 0 | D33: 0 | E33: 0 | F33: 0 | G33: 0 | H33: 0 | I33: 0 | J33: 0
A34: 24 | B34: 1.2. Иные капитальные вложения
A35: 25 | B35: Всего | C35: =SUM(D35:J35) -> 28802.7 | D35: =SUM(D36:D37) -> 3536.4 | E35: =SUM(E36:E37) -> 3853.6 | F35: 6425.5 | G35: 3746.8 | H35: 3746.8 | I35: 3746.8 | J35: 3746.8 | K35: Х
A36: 26 | B36: местный бюджет | C36: =SUM(D36:J36) -> 24274.3 | D36: =SUM(D40) -> 2321.7 | E36: =SUM(E40) -> 539.9 | F36: 6425.5 | G36: 3746.8 | H36: 3746.8 | I36: 3746.8 | J36: 3746.8
A37: 27 | B37: областной бюджет | C37: =SUM(D37:J37) -> 4528.4 | D37: =SUM(D41) -> 1214.7 | E37: =SUM(E41) -> 3313.7 | F37: 0 | G37: 0 | H37: 0 | I37: 0 | J37: 0
A38: 28 | B38: Мероприятие 1 Благоустройство дворовых территорий Североуральского городского округа
A39: 29 | B39: Всего, из них | C39: =SUM(D39:J39) -> 28802.7 | D39: =D40+D41 -> 3536.4 | E39: =E40+E41 -> 3853.6 | F39: =SUM(F40) -> 6425.5 | G39: =SUM(G40) -> 3746.8 | H39: =SUM(H40) -> 3746.8 | I39: =SUM(I40) -> 3746.8 | J39: =SUM(J40) -> 3746.8 | K39: 4
A40: 30 | B40: местный бюджет | C40: =SUM(D40:J40) -> 24274.3 | D40: 2321.7 | E40: 539.9 | F40: 6425.5 | G40: 3746.8 | H40: =SUM(G40) -> 3746.8 | I40: =SUM(H40) -> 3746.8 | J40: =SUM(I40) -> 3746.8
A41: 31 | B41: областной бюджет | C41: =D41+E41+F41+G41+H41+I41+J41 -> 4528.4 | D41: 1214.7 | E41: 3313.7 | F41: 0 | G41: 0 | H41: 0 | I41: 0 | J41: 0
A42: 32 | B42: 3. Прочие нужды
A43: 33 | B43: Всего по направлению «Прочие нужды», всего, в том числе: | C43: =SUM(D43:J43) -> 170833.1 | D43: =SUM(D44:D45) -> 22188.8 | E43: =SUM(E44:E45) -> 25908.5 | F43: 23629.8 | G43: 24776.5 | H43: 24776.5 | I43: 24776.5 | J43: 24776.5 | K43: Х | N43: =SUM(E40+E48) -> 796.9
A44: 34 | B44: местный бюджет | C44: =SUM(D44:J44) -> 170486.9 | D44: =SUM(D52+D55+D58+D61+D48) -> 22188.8 | E44: =SUM(E52+E55+E58+E61+E48) -> 25562.3 | F44: 23629.8 | G44: 24776.5 | H44: 24776.5 | I44: 24776.5 | J44: 24776.5
A45: 35 | B45: областной бюджет | C45: =SUM(D45:J45) -> 346.2 | D45: =SUM(D72) -> 0 | E45: =SUM(E72) -> 346.2 | F45: 0 | G45: 0 | H45: 0 | I45: 0 | J45: 0
A46: 36 | B46: Мероприятие 1 Благоустройство дворовых территорий Североуральского городского округа
A47: 37 | B47: Всего, из них | C47: =SUM(D47:J47) -> 567.9 | D47: =D48+D49 -> 310.9 | E47: =SUM(E48) -> 257 | F47: 0 | G47: 0 | H47: 0 | I47: 0 | J47: 0 | K47: 4
A48: 38 | B48: местный бюджет | C48: =SUM(D48:J48) -> 567.9 | D48: 310.9 | E48: 257 | F48: 0 | G48: 0 | H48: =SUM(G48) -> 0 | I48: =SUM(H48) -> 0 | J48: =SUM(I48) -> 0
A49: 39 | B49: областной бюджет | C49: =D49+E49+F49+G49+H49+I49+J49 -> 0 | D49: 0 | E49: 0 | F49: 0 | G49: 0 | H49: 0 | I49: 0 | J49: 0
A50: 40 | B50: Мероприятие 3 - Уличное освещение
A51: 41 | B51: Всего, из них | C51: =SUM(D51:J51) -> 90001 | D51: =SUM(D52) -> 12001 | E51: 12600 | F51: 12600 | G51: 13200 | H51: 13200 | I51: 13200 | J51: 13200 | K51: 7
A52: 42 | B52: местный бюджет | C52: =SUM(D52:J52) -> 90001 | D52: 12001 | E52: 12600 | F52: 12600 | G52: 13200 | H52: =SUM(G52) -> 13200 | I52: =SUM(H52) -> 13200 | J52: =SUM(I52) -> 13200
A53: 43 | B53: Мероприятие 4 - Озеленение (цветники, валка сухих деревьев)
A54: 44 | B54: Всего, из них | C54: =SUM(D54:J54) -> 21398.9 | D54: =SUM(D55) -> 2890.9 | E54: 2148 | F54: 3150 | G54: 3302.5 | H54: 3302.5 | I54: 3302.5 | J54: 3302.5 | K54: 9
A55: 45 | B55: местный бюджет | C55: =SUM(D55:J55) -> 21398.9 | D55: 2890.9 | E55: 2148 | F55: 3150 | G55: 3302.5 | H55: =SUM(G55) -> 3302.5 | I55: =SUM(H55) -> 3302.5 | J55: =SUM(I55) -> 3302.5
A56: 46 | B56: Мероприятие 5 - Организация и содержание мест захоронения
A57: 47 | B57: Всего, из них | C57: =SUM(D57:J57) -> 18737.7 | D57: =SUM(D58) -> 2263.1 | E57: 2306.9 | F57: 2724.5 | G57: 2860.8 | H57: 2860.8 | I57: 2860.8 | J57: 2860.8 | K57: 14
A58: 48 | B58: местный бюджет | C58: =SUM(D58:J58) -> 18737.7 | D58: 2263.1 | E58: 2306.9 | F58: 2724.5 | G58: 2860.8 | H58: =SUM(G58) -> 2860.8 | I58: =SUM(H58) -> 2860.8 | J58: =SUM(I58) -> 2860.8
A59: 49 | B59: Мероприятие 6 - Прочие мероприятия по благоустройству
A60: 50 | B60: Всего, в том числе: | C60: =SUM(D60:J60) -> 40127.6 | D60: =SUM(D61:D62) -> 4722.9 | E60: =SUM(E61:E62) -> 8596.6 | F60: 5155.3 | G60: 5413.2 | H60: 5413.2 | I60: 5413.2 | J60: 5413.2 | K60: 5,9,11,12,13,15
A61: 51 | B61: местный бюджет | C61: =SUM(D61:J61) -> 39781.4 | D61: =SUM(D65+D68+D71+D75+D78+D84+D81+D87+D90) -> 4722.9 | E61: 8250.4 | F61: 5155.3 | G61: 5413.2 | H61: 5413.2 | I61: 5413.2 | J61: 5413.2
A62: 52 | B62: областной бюджет | C62: =SUM(D62:J62) -> 346.2 | D62: =SUM(D72) -> 0 | E62: =SUM(E72) -> 346.2 | F62: 0 | G62: 0 | H62: 0 | I62: 0 | J62: 0
A63: 53 | B63: - Содержание памятников
A64: 54 | B64: Всего: | C64: =SUM(C65) -> 2958.1 | D64: 369.2 | E64: 404.9 | F64: 420 | G64: 441 | H64: 441 | I64: 441 | J64: 441 | K64: 15
A65: 55 | B65: местный бюджет | C65: =SUM(D65:J65) -> 2958.1 | D65: 369.2 | E65: 404.9 | F65: 420 | G65: 441 | H65: =SUM(G65) -> 441 | I65: =SUM(H65) -> 441 | J65: =SUM(I65) -> 441
A66: 56 | B66: - Проведение комплекса профилактических работ по уходу за объектами благоустройства
A67: 57 | B67: Всего: | C67: =SUM(C68) -> 8081 | D67: =SUM(D68) -> 1098.7 | E67: =SUM(E68) -> 976.1 | F67: 1155 | G67: 1212.8 | H67: 1212.8 | I67: 1212.8 | J67: 1212.8 | K67: 5
A68: 58 | B68: местный бюджет | C68: =SUM(D68:J68) -> 8081 | D68: 1098.7 | E68: 976.1 | F68: 1155 | G68: 1212.8 | H68: =SUM(G68) -> 1212.8 | I68: =SUM(H68) -> 1212.8 | J68: =SUM(I68) -> 1212.8
A69: 59 | B69: - Регулирование численности безнадзорных животных
A70: 60 | B70: Всего: | C70: =SUM(D70:J70) -> 5143.5 | D70: =SUM(D71:D72) -> 500 | E70: =SUM(E71:E72) -> 1177.2 | F70: 666.3 | G70: 700 | H70: 700 | I70: 700 | J70: 700 | K70: 11
A71: 61 | B71: местный бюджет | C71: =SUM(D71:J71) -> 4797.3 | D71: 500 | E71: 831 | F71: 666.3 | G71: 700 | H71: 700 | I71: =SUM(H71) -> 700 | J71: =SUM(I71) -> 700
A72: 62 | B72: областной бюджет | C72: =SUM(D72:J72) -> 346.2 | E72: 346.2
A73: 63 | B73: - Содержание биоямы (скотомогильник)
A74: 64 | B74: Всего: | C74: =SUM(C75) -> 1004.5 | D74: =SUM(D75) -> 116.1 | E74: =SUM(E75) -> 69.3 | F74: 157.5 | G74: 165.4 | H74: 165.4 | I74: 165.4 | J74: 165.4 | K74: 13
A75: 65 | B75: местный бюджет | C75: =SUM(D75:J75) -> 1004.5 | D75: 116.1 | E75: 69.3 | F75: 157.5 | G75: 165.4 | H75: 165.4 | I75: =SUM(H75) -> 165.4 | J75: =SUM(I75) -> 165.4
A76: 66 | B76: - Обустройство и эксплуатация новогодних городков
A77: 67 | B77: Всего: | C77: =SUM(C78) -> 16010.6 | D77: =SUM(D78) -> 1685.5 | E77: =SUM(E78) -> 2669.2 | F77: 2241.5 | G77: 2353.6 | H77: 2353.6 | I77: 2353.6 | J77: 2353.6 | K77: 5
A78: 68 | B78: местный бюджет | C78: =SUM(D78:J78) -> 16010.6 | D78: 1685.5 | E78: 2669.2 | F78: 2241.5 | G78: 2353.6 | H78: 2353.6 | I78: =SUM(H78) -> 2353.6 | J78: =SUM(I78) -> 2353.6
A79: 69 | B79: - Приобретение декоративного освещения для улиц города Североуральска
A80: 70 | B80: Всего: | C80: =SUM(C81) -> 2474.4 | D80: =SUM(D81) -> 773.4 | E80: =SUM(E81) -> 1701 | F80: 0 | G80: 0 | H80: 0 | I80: 0 | J80: 0 | K80: 5
A81: 71 | B81: местный бюджет | C81: =SUM(D81:J81) -> 2474.4 | D81: 773.4 | E81: 1701 | F81: 0 | G81: 0 | H81: =SUM(G81) -> 0 | I81: =SUM(H81) -> 0 | J81: =SUM(I81) -> 0
A82: 72 | B82: - Акарицидная обработка общественных мест
A83: 73 | B83: Всего: | C83: =SUM(C84) -> 1830.1 | D83: =SUM(D84) -> 92 | E83: =SUM(E84) -> 99.9 | F83: 315 | G83: 330.8 | H83: 330.8 | I83: 330.8 | J83: 330.8 | K83: 12
A84: 74 | B84: местный бюджет | C84: =SUM(D84:J84) -> 1830.1 | D84: 92 | E84: 99.9 | F84: 315 | G84: 330.8 | H84: 330.8 | I84: =SUM(H84) -> 330.8 | J84: =SUM(I84) -> 330.8
A85: 75 | B85: - Приобретение грунта плодородного (земли садовой)
A86: 76 | B86: Всего: | C86: =SUM(C87) -> 1126.4 | D86: =SUM(D87) -> 88 | E86: =SUM(E87) -> 0 | F86: 200 | G86: 209.6 | H86: 209.6 | I86: 209.6 | J86: 209.6 | K86: 9
A87: 77 | B87: местный бюджет | C87: =SUM(D87:J87) -> 1126.4 | D87: 88 | E87: 0 | F87: 200 | G87: 209.6 | H87: =SUM(G87) -> 209.6 | I87: =SUM(H87) -> 209.6 | J87: =SUM(I87) -> 209.6
A88: 78 | B88: - Благоустройство мест общего пользования территории Североуральского городского округа
A89: 79 | B89: Всего: | C89: =SUM(C90) -> 1499 | D89: =SUM(D90) -> 0 | E89: =SUM(E90) -> 1499 | F89: 0 | G89: 0 | H89: 0 | I89: 0 | J89: 0 | K89: 5
A90: =SUM(A89+1) -> 80 | B90: местный бюджет | C90: =SUM(D90:J90) -> 1499 | D90: 0 | E90: 1499 | F90: 0 | G90: 0 | H90: 0 | I90: =SUM(H90) -> 0 | J90: =SUM(I90) -> 0
A91: 81 | B91: Подпрограмма 2: Муниципальная программа по энергосбережению и повышению энергетической эффективности объектов Североуральского городского округа
A92: 82 | B92: Всего по подпрограмме 2, в том числе | C92: =SUM(D92:J92) -> 70457.3 | D92: =SUM(D93:D94) -> 9165.5 | E92: 5961.6 | F92: 10025 | G92: 10576.3 | H92: 11576.3 | I92: 11576.3 | J92: 11576.3 | K92: Х
A93: 83 | B93: местный бюджет | C93: =SUM(D93:J93) -> 64112.9 | D93: =SUM(D97+D127) -> 2821.1 | E93: =SUM(E97+E127) -> 5961.6 | F93: =F97+F127 -> 10025 | G93: =SUM(G97+G127) -> 10576.3 | H93: 11576.3 | I93: 11576.3 | J93: 11576.3
A94: 84 | B94: областной бюджет | C94: =SUM(D94:J94) -> 6344.4 | D94: =SUM(D98+D128) -> 6344.4 | E94: =SUM(E98+E128) -> 0 | F94: =SUM(F98+F128) -> 0 | G94: 0 | H94: 0 | I94: 0 | J94: 0
A95: 85 | B95: 1. Капитальные вложения
A96: 86 | B96: Всего по направлению «Капитальные вложения», всего, в том числе | C96: =SUM(C97:C98) -> 33163.8 | D96: 4173.6 | E96: 4420 | F96: 4725 | G96: 4961.3 | H96: 4961.3 | I96: 4961.3 | J96: 4961.3 | K96: Х
A97: 87 | B97: местный бюджет | C97: =SUM(D97:J97) -> 29819.4 | D97: =SUM(D115+D101) -> 829.2 | E97: 4420 | F97: 4725 | G97: 4961.3 | H97: 4961.3 | I97: 4961.3 | J97: 4961.3
A98: 88 | B98: областной бюджет | C98: =SUM(D98:J98) -> 3344.4 | D98: 3344.4 | E98: 0 | F98: 0 | G98: 0 | H98: 0 | I98: 0 | J98: 0
A99: 89 | B99: 1.1. Бюджетные инвестиции в объекты капитального строительства
A100: 90 | B100: Бюджетные инвестиции в объекты капитального строительства всего, в том числе | C100: =SUM(D100:J100) -> 4420 | D100: =SUM(D101:D102) -> 0 | E100: =SUM(E101:E102) -> 4420 | F100: 0 | G100: 0 | H100: 0 | I100: 0 | J100: 0 | K100: Х
A101: 91 | B101: местный бюджет | C101: =SUM(D101:J101) -> 4420 | D101: =SUM(D109+D112+D105) -> 0 | E101: =SUM(E109+E112+E105) -> 4420 | F101: 0 | G101: 0 | H101: 0 | I101: 0 | J101: 0
A102: 92 | B102: областной бюджет | C102: =SUM(D102:J102) -> 0 | D102: 0 | E102: 0 | F102: 0 | G102: 0 | H102: 0 | I102: 0 | J102: 0
A103: 93 | B103: Мероприятие 9 - Закупка и установка осветительного оборудования с заменой неэффективного на энергосберегающее, в том числе замена ламп накаливания на энергосберегающие, строительство, модернизация сетей уличного освещения, проектно-сметные работы, экспертиза проектно-сметной документации
A104: 94 | B104: всего, из них: | C104: =SUM(C105:C106) -> 1420 | D104: =SUM(D105:D106) -> 0 | E104: =SUM(E105:E106) -> 1420 | F104: 0 | G104: 0 | H104: 0 | I104: 0 | J104: 0 | K104: 26
A105: 95 | B105: местный бюджет | C105: =SUM(D105:J105) -> 1420 | D105: 0 | E105: 1420 | F105: 0 | G105: 0 | H105: =SUM(G105) -> 0 | I105: 0 | J105: 0
A106: 96 | B106: областной бюджет | C106: =SUM(D106:J106) -> 0 | D106: 0 | E106: 0 | F106: 0 | G106: 0 | H106: 0 | I106: 0 | J106: 0
A107: 97 | B107: Мероприятие 11 - Разработка, экспертиза проектно-сметной документации на строительство сетей водоснабжения в Североуральском городском округе
A108: 98 | B108: всего, из них: | C108: =SUM(D108:J108) -> 0 | D108: =SUM(D109) -> 0 | E108: =SUM(E109) -> 0 | F108: 0 | G108: 0 | H108: 0 | I108: 0 | J108: 0 | K108: 29
A109: 99 | B109: местный бюджет | C109: =SUM(D109:J109) -> 0 | D109: 0 | E109: 0 | F109: 0 | G109: =SUM(F109) -> 0 | H109: =SUM(G109) -> 0 | I109: =SUM(H109) -> 0 | J109: =SUM(I109) -> 0
A110: 100 | B110: Мероприятие 11.1 - Разработка, экспертиза проектно-сметной документации на строительство котельных в Североуральском городском округе
A111: 101 | B111: всего, из них: | C111: =SUM(D111:J111) -> 3000 | D111: =SUM(D112) -> 0 | E111: =SUM(E112) -> 3000 | F111: 0 | G111: 0 | H111: 0 | I111: 0 | J111: 0 | K111: 29.1
A112: 102 | B112: местный бюджет | C112: =SUM(D112:J112) -> 3000 | D112: 0 | E112: 3000 | F112: 0 | G112: =SUM(F112) -> 0 | H112: =SUM(G112) -> 0 | I112: =SUM(H112) -> 0 | J112: =SUM(I112) -> 0
A113: 103 | B113: 1.2. Иные капитальные вложения
A114: 104 | B114: Всего, в том числе | C114: =SUM(C115:C116) -> 28743.8 | D114: 4173.6 | E114: 0 | F114: 4725 | G114: 4961.3 | H114: 4961.3 | I114: 4961.3 | J114: 4961.3 | K114: Х
A115: 105 | B115: местный бюджет | C115: =SUM(D115:J115) -> 25399.4 | D115: =SUM(D119+D123) -> 829.2 | E115: 0 | F115: 4725 | G115: 4961.3 | H115: 4961.3 | I115: 4961.3 | J115: 4961.3
A116: 106 | B116: областной бюджет | C116: =SUM(D116:J116) -> 3344.4 | D116: =SUM(D120+D124) -> 3344.4 | E116: 0 | F116: 0 | G116: 0 | H116: 0 | I116: 0 | J116: 0
A117: 107 | B117: Мероприятие 7- Реконструкция, модернизация водопроводных сетей, сетей системы водоотведения с заменой (без замены) оборудования с более высоким КПД, установка регулируемого привода, реконструкция тепловых сетей, в том числе тепловых пунктов, котельных, капитальный ремонт систем коммунального хозяйства
A118: 108 | B118: Всего, в том числе: | C118: =SUM(C119:C120) -> 27607.6 | D118: 3037.4 | E118: 0 | F118: 4725 | G118: 4961.3 | H118: 4961.3 | I118: 4961.3 | J118: 4961.3 | K118: 27
A119: 109 | B119: местный бюджет | C119: =SUM(D119:J119) -> 24851.2 | D119: 281 | E119: 0 | F119: 4725 | G119: 4961.3 | H119: =SUM(G119) -> 4961.3 | I119: 4961.3 | J119: 4961.3
A120: 110 | B120: областной бюджет | C120: =SUM(D120:J120) -> 2756.4 | D120: 2756.4 | E120: 0 | F120: 0 | G120: 0 | H120: 0 | I120: 0 | J120: 0
A121: 111 | B121: Мероприятие 9 - Закупка и установка осветительного оборудования с заменой неэффективного на энергосберегающее, в том числе замена ламп накаливания на энергосберегающие, строительство, модернизация сетей уличного освещения, проектно-сметные работы, экспертиза проектно-сметной документации
A122: 112 | B122: всего, из них: | C122: =SUM(C123:C124) -> 1136.2 | D122: =SUM(D123:D124) -> 1136.2 | E122: =SUM(E123:E124) -> 0 | F122: 0 | G122: 0 | H122: 0 | I122: 0 | J122: 0 | K122: 26
A123: 113 | B123: местный бюджет | C123: =SUM(D123:J123) -> 548.2 | D123: 548.2 | E123: 0 | F123: 0 | G123: 0 | H123: =SUM(G123) -> 0 | I123: 0 | J123: 0
A124: 114 | B124: областной бюджет | C124: =SUM(D124:J124) -> 588 | D124: 588 | E124: 0 | F124: 0 | G124: 0 | H124: 0 | I124: 0 | J124: 0
A125: 115 | B125: 3. Прочие нужды
A126: 116 | B126: Всего по направлению «Прочие нужды», всего, в том числе: | C126: =SUM(D126:J126) -> 37293.5 | D126: =SUM(D127:D128) -> 4991.9 | E126: =SUM(E127:E128) -> 1541.6 | F126: 5300 | G126: 5615 | H126: 6615 | I126: 6615 | J126: 6615 | K126: Х
A127: 117 | B127: местный бюджет | C127: =SUM(D127:J127) -> 34293.5 | D127: =SUM(D131+D136+D140+D143+D109+D112) -> 1991.9 | E127: =SUM(E131+E136+E140+E143) -> 1541.6 | F127: 5300 | G127: 5615 | H127: 6615 | I127: 6615 | J127: 6615
A128: 118 | B128: областной бюджет | C128: =SUM(D128:J128) -> 3000 | D128: =SUM(D137+D132) -> 3000 | E128: =SUM(E137+E132) -> 0 | F128: 0 | G128: 0 | H128: 0 | I128: 0 | J128: 0
A129: 119 | B129: Мероприятие 8 - Оснащение зданий (строений, сооружений), находящихся в муниципальной собственности, многоквартирных жилых домов, жилых помещений, квартир приборами учета используемых энергетических ресурсов, в том числе разработка проектно-сметной документации
A130: 120 | B130: всего, в том числе: | C130: =SUM(D130:J130) -> 19680 | D130: =SUM(D131:D132) -> 4200 | E130: 1100 | F130: 2150 | G130: 2307.5 | H130: 3307.5 | I130: 3307.5 | J130: 3307.5 | K130: 19,21,22,23,24
A131: 121 | B131: местный бюджет | C131: =SUM(D131:J131) -> 16680 | D131: 1200 | E131: 1100 | F131: 2150 | G131: 2307.5 | H131: 3307.5 | I131: =SUM(H131) -> 3307.5 | J131: =SUM(I131) -> 3307.5
A132: 122 | B132: областной бюджет | C132: =SUM(D132:J132) -> 3000 | D132: 3000 | E132: =SUM(E133) -> 0 | F132: 0 | G132: 0 | H132: 0 | I132: 0 | J132: 0
A133: 123 | B133: федеральный бюджет | C133: =SUM(D133:J133) -> 0 | D133: 0 | E133: 0 | F133: 0 | G133: =SUM(F133) -> 0 | H133: =SUM(G133) -> 0 | I133: =SUM(H133) -> 0 | J133: =SUM(I133) -> 0
A134: 124 | B134: Мероприятие 9 - Закупка и установка осветительного оборудования с заменой неэффективного на энергосберегающее, в том числе замена ламп накаливания на энергосберегающие, строительство, модернизация сетей уличного освещения, проектно-сметные работы, экспертиза проектно-сметной документации
A135: 125 | B135: всего, из них: | C135: =SUM(C136:C137) -> 16971.9 | D135: =SUM(D136:D137) -> 411.9 | E135: =SUM(E136:E137) -> 180 | F135: 3150 | G135: 3307.5 | H135: 3307.5 | I135: 3307.5 | J135: 3307.5 | K135: 26
A136: 126 | B136: местный бюджет | C136: =SUM(D136:J136) -> 16971.9 | D136: 411.9 | E136: 180 | F136: 3150 | G136: 3307.5 | H136: =SUM(G136) -> 3307.5 | I136: 3307.5 | J136: 3307.5
A137: 127 | B137: областной бюджет | C137: =SUM(D137:J137) -> 0 | D137: 0 | E137: 0 | F137: 0 | G137: 0 | H137: 0 | I137: 0 | J137: 0
A138: 128 | B138: Мероприятие 10 - Разработка схемы водоснабжения Североуральского городского округа
A139: 129 | B139: всего, из них: | C139: =SUM(D139:J139) -> 380 | D139: =SUM(D140) -> 380 | E139: =SUM(E140) -> 0 | F139: 0 | G139: 0 | H139: 0 | I139: 0 | J139: 0 | K139: 28
A140: 130 | B140: местный бюджет | C140: =SUM(D140:J140) -> 380 | D140: 380 | E140: 0 | F140: 0 | G140: =SUM(F140) -> 0 | H140: =SUM(G140) -> 0 | I140: =SUM(H140) -> 0 | J140: =SUM(I140) -> 0
A141: 131 | B141: Мероприятие 12 - Прочие мероприятия в области энергосбережения (разработка технических заданий, топливно-энерготехнического баланса и т.п.)
A142: 132 | B142: всего, из них: | C142: =SUM(D142:J142) -> 261.6 | D142: =SUM(D143) -> 0 | E142: =SUM(E143) -> 261.6 | F142: 0 | G142: 0 | H142: 0 | I142: 0 | J142: 0 | K142: 30
A143: 133 | B143: местный бюджет | C143: =SUM(D143:J143) -> 261.6 | D143: 0 | E143: 261.6 | F143: 0 | G143: =SUM(F143) -> 0 | H143: =SUM(G143) -> 0 | I143: =SUM(H143) -> 0 | J143: =SUM(I143) -> 0
A144: 134 | B144: Подпрограмма 3: Развитие лесного хозяйства на территории Североуральского городского округа
A145: 135 | B145: Всего по подпрограмме 1, всего, в том числе | C145: =SUM(C146:C146) -> 2698.2 | D145: =SUM(D146) -> 774.1 | E145: =SUM(E146) -> 881.1 | F145: 200.6 | G145: 210.6 | H145: 210.6 | I145: 210.6 | J145: 210.6 | K145: Х
A146: 136 | B146: местный бюджет | C146: =SUM(D146:J146) -> 2698.2 | D146: =SUM(D158) -> 774.1 | E146: =SUM(E158) -> 881.1 | F146: 200.6 | G146: 210.6 | H146: 210.6 | I146: 210.6 | J146: 210.6
A147: 137 | B147: 1. Капитальные вложения
A148: 138 | B148: Всего по направлению «Капитальные вложения», всего, в том числе | C148: 0 | D148: 0 | E148: 0 | F148: 0 | G148: 0 | H148: 0 | I148: 0 | J148: 0 | K148: Х
A149: 139 | B149: местный бюджет | C149: 0 | D149: 0 | E149: 0 | F149: 0 | G149: 0 | H149: 0 | I149: 0 | J149: 0
A150: 140 | B150: 1.1. Бюджетные инвестиции в объекты капитального строительства
A151: 141 | B151: Бюджетные инвестиции в объекты капитального строительства всего, в том числе: | C151: =SUM(C152) -> 0 | D151: =SUM(D152) -> 0 | E151: 0 | F151: 0 | G151: 0 | H151: 0 | I151: 0 | J151: 0 | K151: Х
A152: 142 | B152: местный бюджет | C152: 0 | D152: 0 | E152: 0 | F152: 0 | G152: 0 | H152: 0 | I152: 0 | J152: 0
A153: 143 | B153: 1.2. Иные капитальные вложения
A154: =SUM(A153+1) -> 144 | B154: Всего, в том числе: | C154: =SUM(B156) -> 0 | D154: 0 | E154: 0 | F154: 0 | G154: 0 | H154: 0 | I154: 0 | J154: 0 | K154: Х
A155: 145 | B155: местный бюджет | C155: 0 | D155: 0 | E155: 0 | F155: 0 | G155: 0 | H155: 0 | I155: 0 | J155: 0
A156: 146 | B156: 3. Прочие нужды
A157: 147 | B157: Всего, из них | C157: =SUM(C158:C158) -> 2698.2 | D157: 774.1 | E157: 881.1 | F157: 200.6 | G157: 210.6 | H157: 210.6 | I157: 210.6 | J157: 210.6 | K157: Х
A158: 148 | B158: местный бюджет | C158: =SUM(D158:J158) -> 2698.2 | D158: =SUM(D161) -> 774.1 | E158: =SUM(E161) -> 881.1 | F158: 200.6 | G158: 210.6 | H158: 210.6 | I158: 210.6 | J158: 210.6
A159: 149 | B159: Мероприятие 13 - Развитие лесного хозяйства на территории Североуральского городского округа
A160: 150 | B160: Всего, в том числе: | C160: =SUM(D160:J160) -> 2698.2 | D160: =SUM(D161) -> 774.1 | E160: =SUM(E161) -> 881.1 | F160: 200.6 | G160: 210.6 | H160: 210.6 | I160: 210.6 | J160: 210.6 | K160: 34
A161: 151 | B161: местный бюджет | C161: =SUM(D161:J161) -> 2698.2 | D161: 774.1 | E161: 881.1 | F161: 200.6 | G161: 210.6 | H161: =SUM(G161) -> 210.6 | I161: =SUM(H161) -> 210.6 | J161: =SUM(I161) -> 210.6
A162: 152 | B162: Подпрограмма 4 : Переселение граждан на территории Североуральского городского округа из аварийного жилищного фонда
A163: 153 | B163: Всего по подпрограмме 4, всего, в том числе | C163: =SUM(C164:C166) -> 500632 | D163: =SUM(D164:D166) -> 223750 | E163: 267351.8 | F163: 9530.2 | G163: 0 | H163: 0 | I163: 0 | J163: 0 | K163: Х
A164: 154 | B164: местный бюджет | C164: =SUM(D164:J164) -> 99213 | D164: =SUM(D169+D187) -> 40275 | E164: =SUM(E169+E187) -> 49407.8 | F164: 9530.2 | G164: 0 | H164: 0 | I164: 0 | J164: 0
A165: 155 | B165: областной бюджет | C165: =SUM(D165:J165) -> 233101.4 | D165: =SUM(D170) -> 101657 | E165: =SUM(E170) -> 131444.4 | F165: 0 | G165: 0 | H165: 0 | I165: 0 | J165: 0
A166: 156 | B166: федеральный бюджет | C166: =SUM(D166:J166) -> 168317.6 | D166: =SUM(D171) -> 81818 | E166: =SUM(E171) -> 86499.6 | F166: 0 | G166: 0 | H166: 0 | I166: 0 | J166: 0
A167: 157 | B167: 1. Капитальные вложения
A168: 158 | B168: Всего по направлению «Капитальные вложения», всего, в том числе | C168: =SUM(C169:C171) -> 499065.5 | D168: =SUM(D169:D171) -> 223750 | E168: =SUM(E169:E171) -> 265785.3 | F168: 9530.2 | G168: 0 | H168: 0 | I168: 0 | J168: 0 | K168: Х
A169: 159 | B169: местный бюджет | C169: =SUM(D169:J169) -> 97646.5 | D169: =SUM(D182) -> 40275 | E169: =SUM(E182) -> 47841.3 | F169: 9530.2 | G169: 0 | H169: 0 | I169: 0 | J169: 0
A170: 160 | B170: областной бюджет | C170: =SUM(D170:J170) -> 233101.4 | D170: =SUM(D183) -> 101657 | E170: =SUM(E183) -> 131444.4 | F170: 0 | G170: 0 | H170: 0 | I170: 0 | J170: 0
A171: 161 | B171: федеральный бюджет | C171: =SUM(D171:J171) -> 168317.6 | D171: =SUM(D184) -> 81818 | E171: =SUM(E184) -> 86499.6 | F171: 0 | G171: 0 | H171: 0 | I171: 0 | J171: 0
A172: 162 | B172: 1.1. Бюджетные инвестиции в объекты капитального строительства
A173: 163 | B173: Бюджетные инвестиции в объекты капитального строительства всего, в том числе: | C173: =SUM(C174) -> 0 | D173: =SUM(D174) -> 0 | E173: 0 | F173: 0 | G173: 0 | H173: 0 | I173: 0 | J173: 0 | K173: Х
A174: 164 | B174: местный бюджет | C174: 0 | D174: 0 | E174: 0 | F174: 0 | G174: 0 | H174: 0 | I174: 0 | J174: 0
A175: 165 | B175: 1.2. Иные капитальные вложения
A176: 166 | B176: Всего, в том числе: | C176: =SUM(D176:J176) -> 485505.4 | D176: =SUM(D177:D179) -> 210189.9 | E176: =SUM(E177:E179) -> 265785.3 | F176: 9530.2 | G176: 0 | H176: 0 | I176: 0 | J176: 0 | K176: Х
A177: 167 | B177: местный бюджет | C177: =SUM(D177:J177) -> 97646.5 | D177: =SUM(D182) -> 40275 | E177: 47841.3 | F177: 9530.2 | G177: 0 | H177: 0 | I177: 0 | J177: 0
A178: 168 | B178: областной бюджет | C178: =SUM(D178:J178) -> 233101.4 | D178: =SUM(D183) -> 101657 | E178: =SUM(E183) -> 131444.4 | F178: 0 | G178: 0 | H178: 0 | I178: 0 | J178: 0
A179: 169 | B179: федеральный бюджет | C179: =SUM(D179:J179) -> 154757.5 | D179: 68257.9 | E179: =SUM(E184) -> 86499.6 | F179: 0 | G179: 0 | H179: 0 | I179: 0 | J179: 0
A180: 170 | B180: Мероприятие 14 - Переселение граждан на территории Североуральского городского округа из аварийного жилищного фонда
A181: 171 | B181: Всего по направлению «Капитальные вложения», всего, в том числе | C181: =SUM(D181:J181) -> 499065.5 | D181: =SUM(D182:D184) -> 223750 | E181: =SUM(E182:E184) -> 265785.3 | F181: 9530.2 | G181: 0 | H181: 0 | I181: 0 | J181: 0 | K181: 38.4
A182: 172 | B182: местный бюджет | C182: =SUM(D182:J182) -> 97646.5 | D182: 40275 | E182: 47841.3 | F182: 9530.2 | G182: 0 | H182: 0 | I182: 0 | J182: 0
A183: 173 | B183: областной бюджет | C183: =SUM(D183:J183) -> 233101.4 | D183: 101657 | E183: 131444.4 | F183: 0 | G183: 0 | H183: 0 | I183: 0 | J183: 0
A184: 174 | B184: федеральный бюджет | C184: =SUM(D184:J184) -> 168317.6 | D184: 81818 | E184: 86499.6 | F184: 0 | G184: 0 | H184: 0 | I184: 0 | J184: 0
A185: 175 | B185: 3. Прочие нужды
A186: 176 | B186: Всего, в том числе: | C186: =SUM(D186:J186) -> 1566.5 | D186: =SUM(D187) -> 0 | E186: =SUM(E187) -> 1566.5 | F186: 0 | G186: 0 | H186: 0 | I186: 0 | J186: 0 | K186: Х
A187: 177 | B187: местный бюджет | C187: =SUM(C190+C193) -> 1566.5 | D187: 0 | E187: 1566.5 | F187: 0 | G187: 0 | H187: 0 | I187: 0 | J187: 0
A188: 178 | B188: Мероприятие 15 - Осуществление сноса аварийных домов и высвобождение земельных участков под новое жилищное строительство
A189: 179 | B189: Всего, из них | C189: =SUM(D189:J189) -> 1400 | D189: =SUM(D190) -> 0 | E189: =SUM(E190) -> 1400 | F189: 0 | G189: 0 | H189: 0 | I189: 0 | J189: 0 | K189: 41
A190: 180 | B190: местный бюджет | C190: =SUM(D190:J190) -> 1400 | D190: 0 | E190: 1400 | F190: 0 | G190: 0 | H190: 0 | I190: 0 | J190: 0
A191: 181 | B191: Мероприятие 15.1. - Обследование жилищного фонда на предмет признания его аварийным
A192: 182 | B192: Всего, из них | C192: =SUM(D192:J192) -> 166.5 | D192: =SUM(D193) -> 0 | E192: =SUM(E193) -> 166.5 | F192: 0 | G192: 0 | H192: 0 | I192: 0 | J192: 0 | K192: 41
A193: 183 | B193: местный бюджет | C193: =SUM(D193:J193) -> 166.5 | D193: 0 | E193: 166.5 | F193: 0 | G193: 0 | H193: 0 | I193: 0 | J193: 0
A194: 184 | B194: Подпрограмма 5 : Содержание и капитальный ремонт общего имущества муниципального жилищного фонда на территории Североуральского городского округа
A195: 185 | B195: Всего по подпрограмме 5, в том числе | C195: =C196 -> 127015.9 | D195: =D196 -> 9057 | E195: =E196 -> 21203.5 | F195: 17991.4 | G195: 18941 | H195: 19941 | I195: 19941 | J195: 19941 | K195: Х
A196: 186 | B196: местный бюджет | C196: =SUM(D196:J196) -> 127015.9 | D196: =SUM(D208) -> 9057 | E196: =SUM(E208) -> 21203.5 | F196: 17991.4 | G196: 18941 | H196: 19941 | I196: 19941 | J196: 19941
A197: 187 | B197: 1. Капитальные вложения
A198: 188 | B198: Всего по направлению «Капитальные вложения», всего, в том числе | C198: =SUM(C199) -> 0 | D198: =SUM(D199) -> 0 | E198: 0 | F198: 0 | G198: 0 | H198: 0 | I198: 0 | J198: 0 | K198: Х
A199: 189 | B199: местный бюджет | C199: 0 | D199: 0 | E199: 0 | F199: 0 | G199: 0 | H199: 0 | I199: 0 | J199: 0
A200: 190 | B200: 1.1. Бюджетные инвестиции в объекты капитального строительства
A201: 191 | B201: Бюджетные инвестиции в объекты капитального строительства всего, в том числе: | C201: =SUM(C202) -> 0 | D201: =SUM(D202) -> 0 | E201: 0 | F201: 0 | G201: 0 | H201: 0 | I201: 0 | J201: 0 | K201: Х
... 147 more rows

Sheet Лист2

Sheet Лист3
